[Event "*** Titled Tuesday Blitz"]
[Site "Chess.com"]
[Date "2020.05.19"]
[Round "6"]
[White "VALPARAISO37"]
[Black "Patolindo"]
[Result "1-0"]
[WhiteElo "2300"]
[BlackElo "2112"]
[TimeControl "180+1"]
[EndTime "13:05:27 PDT"]
[Termination "VALPARAISO37 won by resignation"]

1. d4 {[%clk 0:03:00.9]} 1... Nf6 {[%clk 0:02:58.8]} 2. c4 {[%clk 0:03:00.6]}
2... g6 {[%clk 0:02:58.7]} 3. Nc3 {[%clk 0:02:59.9]} 3... d5 {[%clk 0:02:59.1]}
4. Bf4 {[%clk 0:02:59.4]} 4... Bg7 {[%clk 0:02:58.9]} 5. Nf3 {[%clk 0:02:59.7]}
5... O-O {[%clk 0:02:59]} 6. e3 {[%clk 0:02:59.4]} 6... c5 {[%clk 0:02:58.9]} 7.
dxc5 {[%clk 0:02:59.8]} 7... Qa5 {[%clk 0:02:55.6]} 8. Rc1 {[%clk 0:02:59.9]}
8... Nc6 {[%clk 0:02:55]} 9. a3 {[%clk 0:02:54.7]} 9... dxc4 {[%clk 0:02:50]}
10. Bxc4 {[%clk 0:02:54.1]} 10... Qxc5 {[%clk 0:02:43.3]} 11. Ba2 {[%clk
0:02:52.5]} 11... Rd8 {[%clk 0:02:41.3]} 12. Qe2 {[%clk 0:02:49.1]} 12... e5
{[%clk 0:02:34.9]} 13. Bg3 {[%clk 0:02:44.3]} 13... e4 {[%clk 0:02:33]} 14. Nd2
{[%clk 0:02:41.8]} 14... Bg4 {[%clk 0:02:29.5]} 15. Qc4 {[%clk 0:02:41]} 15...
Qxc4 {[%clk 0:02:11.6]} 16. Nxc4 {[%clk 0:02:40.7]} 16... Rac8 {[%clk
0:02:01.6]} 17. Nd6 {[%clk 0:02:39.5]} 17... Rc7 {[%clk 0:01:59]} 18. Ncb5
{[%clk 0:02:35.9]} 18... Rcd7 {[%clk 0:01:55.7]} 19. h3 {[%clk 0:02:25.3]} 19...
Bh5 {[%clk 0:01:52.1]} 20. O-O {[%clk 0:02:23.9]} 20... a6 {[%clk 0:01:49.6]}
21. Nxf7 {[%clk 0:02:22.7]} 21... Rxf7 {[%clk 0:01:45.7]} 22. Nd6 {[%clk
0:02:21.9]} 22... g5 {[%clk 0:01:33.9]} 23. Nxb7 {[%clk 0:02:19.1]} 23... Rc8
{[%clk 0:01:27.4]} 24. Nd6 {[%clk 0:02:17.2]} 1-0

[Event "*** Titled Tuesday Blitz"]
[Site "Chess.com"]
[Date "2020.05.19"]
[Round "6"]
[White "FontVella8"]
[Black "PredragNikac"]
[Result "0-1"]
[WhiteElo "2536"]
[BlackElo "2309"]
[TimeControl "180+1"]
[EndTime "13:05:37 PDT"]
[Termination "PredragNikac won by resignation"]

1. e4 {[%clk 0:03:00.9]} 1... d5 {[%clk 0:02:59.3]} 2. exd5 {[%clk 0:03:00.6]}
2... Nf6 {[%clk 0:02:59.1]} 3. Nf3 {[%clk 0:02:56.8]} 3... Qxd5 {[%clk
0:02:57.8]} 4. d4 {[%clk 0:02:52.6]} 4... Bg4 {[%clk 0:02:56.8]} 5. Be2 {[%clk
0:02:51.3]} 5... Nc6 {[%clk 0:02:56.6]} 6. Be3 {[%clk 0:02:51.4]} 6... O-O-O
{[%clk 0:02:56.2]} 7. c4 {[%clk 0:02:51.3]} 7... Qh5 {[%clk 0:02:55.7]} 8. Nc3
{[%clk 0:02:51.1]} 8... e5 {[%clk 0:02:55.5]} 9. d5 {[%clk 0:02:51]} 9... e4
{[%clk 0:02:54.5]} 10. Nd4 {[%clk 0:02:42.7]} 10... Ne5 {[%clk 0:02:45.2]} 11.
Qa4 {[%clk 0:02:24.1]} 11... Bxe2 {[%clk 0:02:40.3]} 12. Ncxe2 {[%clk
0:02:22.1]} 12... Nd3+ {[%clk 0:02:23.2]} 13. Kf1 {[%clk 0:02:20.3]} 13... Bc5
{[%clk 0:02:22.1]} 14. Ng3 {[%clk 0:02:05.6]} 14... Qe5 {[%clk 0:02:17.5]} 15.
Nge2 {[%clk 0:01:32.4]} 15... Ng4 {[%clk 0:02:11.4]} 16. b4 {[%clk 0:01:20.7]}
16... Nxe3+ {[%clk 0:02:08.6]} 17. fxe3 {[%clk 0:01:20.9]} 17... Qf6+ {[%clk
0:02:04.7]} 18. Nf3 {[%clk 0:01:08.4]} 18... Qxa1+ {[%clk 0:02:01.1]} 0-1

[Event "*** Titled Tuesday Blitz"]
[Site "Chess.com"]
[Date "2020.05.19"]
[Round "6"]
[White "LuckSlayeer"]
[Black "chenxiaoyuer"]
[Result "1-0"]
[WhiteElo "2446"]
[BlackElo "2284"]
[TimeControl "180+1"]
[EndTime "13:05:38 PDT"]
[Termination "LuckSlayeer won by resignation"]

1. Nf3 {[%clk 0:03:00.9]} 1... Nf6 {[%clk 0:02:59.9]} 2. c4 {[%clk 0:03:00.7]}
2... g6 {[%clk 0:03:00]} 3. Nc3 {[%clk 0:03:00.7]} 3... Bg7 {[%clk 0:03:00.4]}
4. e4 {[%clk 0:03:00.4]} 4... d6 {[%clk 0:03:00.6]} 5. d4 {[%clk 0:03:00.9]}
5... O-O {[%clk 0:03:00.5]} 6. Be2 {[%clk 0:03:01.5]} 6... e5 {[%clk 0:03:00.5]}
7. O-O {[%clk 0:03:02.3]} 7... Nc6 {[%clk 0:03:00.5]} 8. d5 {[%clk 0:03:02.2]}
8... Ne7 {[%clk 0:03:00.7]} 9. b4 {[%clk 0:03:02.9]} 9... a5 {[%clk 0:02:59.9]}
10. Ba3 {[%clk 0:03:03.1]} 10... Nh5 {[%clk 0:02:59.6]} 11. bxa5 {[%clk
0:02:57.4]} 11... f5 {[%clk 0:02:44.8]} 12. Ng5 {[%clk 0:02:55.3]} 12... Nf6
{[%clk 0:02:44]} 13. Bf3 {[%clk 0:02:54.4]} 13... Rxa5 {[%clk 0:02:37.3]} 14.
Bb4 {[%clk 0:02:54.2]} 14... Ra8 {[%clk 0:02:37]} 15. Re1 {[%clk 0:02:35.4]}
15... h6 {[%clk 0:02:31.5]} 16. Ne6 {[%clk 0:02:34.8]} 16... Bxe6 {[%clk
0:02:31.2]} 17. dxe6 {[%clk 0:02:35.7]} 17... c5 {[%clk 0:02:31.1]} 18. Nb5
{[%clk 0:01:58.5]} 18... cxb4 {[%clk 0:02:23.9]} 19. Nxd6 {[%clk 0:01:58.2]}
19... Qb6 {[%clk 0:02:11.6]} 20. exf5 {[%clk 0:01:50.1]} 20... Rfd8 {[%clk
0:02:06.6]} 21. c5 {[%clk 0:01:48.3]} 21... Qxc5 {[%clk 0:01:59.7]} 22. Nxb7
{[%clk 0:01:48.6]} 22... Rxd1 {[%clk 0:01:57.7]} 23. Nxc5 {[%clk 0:01:48.6]}
23... Rxa1 {[%clk 0:01:56]} 24. Rxa1 {[%clk 0:01:48.7]} 24... gxf5 {[%clk
0:01:53.6]} 25. Bxa8 {[%clk 0:01:48.2]} 1-0

[Event "*** Titled Tuesday Blitz"]
[Site "Chess.com"]
[Date "2020.05.19"]
[Round "6"]
[White "zurzan"]
[Black "Jenia84"]
[Result "0-1"]
[WhiteElo "1902"]
[BlackElo "2230"]
[TimeControl "180+1"]
[EndTime "13:05:40 PDT"]
[Termination "Jenia84 won by resignation"]

1. f4 {[%clk 0:03:00.9]} 1... b6 {[%clk 0:02:50.9]} 2. e4 {[%clk 0:02:59.4]}
2... Bb7 {[%clk 0:02:51.2]} 3. d3 {[%clk 0:02:59.6]} 3... d5 {[%clk 0:02:47.4]}
4. e5 {[%clk 0:02:55.8]} 4... d4 {[%clk 0:02:47.6]} 5. Nf3 {[%clk 0:02:53.8]}
5... c5 {[%clk 0:02:48]} 6. Be2 {[%clk 0:02:52.5]} 6... e6 {[%clk 0:02:47.5]} 7.
O-O {[%clk 0:02:51.3]} 7... Ne7 {[%clk 0:02:48]} 8. c3 {[%clk 0:02:50.1]} 8...
Nbc6 {[%clk 0:02:42.9]} 9. c4 {[%clk 0:02:49.5]} 9... h5 {[%clk 0:02:41]} 10. h4
{[%clk 0:02:45.7]} 10... Nf5 {[%clk 0:02:40.9]} 11. Qe1 {[%clk 0:02:39.3]} 11...
Be7 {[%clk 0:02:39.7]} 12. g3 {[%clk 0:02:38.1]} 12... Qc7 {[%clk 0:02:28.6]}
13. a3 {[%clk 0:02:36.4]} 13... O-O-O {[%clk 0:02:24.4]} 14. Bd2 {[%clk
0:02:34.4]} 14... a5 {[%clk 0:02:20.9]} 15. b4 {[%clk 0:02:33.4]} 15... cxb4
{[%clk 0:02:17]} 16. axb4 {[%clk 0:02:33.6]} 16... Nxb4 {[%clk 0:02:16.8]} 17.
Na3 {[%clk 0:02:31.4]} 17... Kb8 {[%clk 0:02:09.3]} 18. Nb5 {[%clk 0:02:29.9]}
18... Qc6 {[%clk 0:02:07.1]} 19. Rc1 {[%clk 0:02:13.2]} 19... f6 {[%clk
0:01:58.2]} 20. Qf2 {[%clk 0:02:08.9]} 20... fxe5 {[%clk 0:01:53.6]} 21. fxe5
{[%clk 0:02:03.5]} 21... Rhf8 {[%clk 0:01:51.8]} 22. Bf4 {[%clk 0:02:01.6]}
22... Bc5 {[%clk 0:01:43.8]} 23. Kh2 {[%clk 0:02:00.9]} 23... Ne3 {[%clk
0:01:40.2]} 24. Rg1 {[%clk 0:01:43.7]} 24... Ng4+ {[%clk 0:01:37.6]} 0-1

[Event "*** Titled Tuesday Blitz"]
[Site "Chess.com"]
[Date "2020.05.19"]
[Round "6"]
[White "NotFischer"]
[Black "Nellichka"]
[Result "0-1"]
[WhiteElo "2089"]
[BlackElo "1997"]
[TimeControl "180+1"]
[EndTime "13:05:48 PDT"]
[Termination "Nellichka won by resignation"]

1. e4 {[%clk 0:03:00.9]} 1... e6 {[%clk 0:02:57.5]} 2. d4 {[%clk 0:03:00]} 2...
d5 {[%clk 0:02:56.7]} 3. e5 {[%clk 0:03:00.2]} 3... c5 {[%clk 0:02:56]} 4. c3
{[%clk 0:03:00.5]} 4... Nc6 {[%clk 0:02:54.4]} 5. Nf3 {[%clk 0:03:00.9]} 5...
Qb6 {[%clk 0:02:53.2]} 6. Bd3 {[%clk 0:02:59.3]} 6... Bd7 {[%clk 0:02:48.4]} 7.
dxc5 {[%clk 0:02:58.8]} 7... Bxc5 {[%clk 0:02:45.7]} 8. O-O {[%clk 0:02:59.7]}
8... a5 {[%clk 0:02:43.4]} 9. Qe2 {[%clk 0:02:57.9]} 9... f5 {[%clk 0:02:28.2]}
10. exf6 {[%clk 0:02:50]} 10... Nxf6 {[%clk 0:02:26.1]} 11. c4 {[%clk
0:02:25.6]} 11... O-O {[%clk 0:02:11.1]} 12. cxd5 {[%clk 0:02:24.4]} 12... exd5
{[%clk 0:02:08.9]} 13. Nc3 {[%clk 0:02:22.6]} 13... Rae8 {[%clk 0:02:07.6]} 14.
Qd1 {[%clk 0:02:16.1]} 14... Nb4 {[%clk 0:01:58.4]} 15. Na4 {[%clk 0:02:15.4]}
15... Bxa4 {[%clk 0:01:56.4]} 16. Bxh7+ {[%clk 0:02:13.7]} 16... Nxh7 {[%clk
0:01:52.3]} 17. Qxa4 {[%clk 0:02:14.6]} 17... Nd3 {[%clk 0:01:48.7]} 18. Qg4
{[%clk 0:01:47.6]} 18... Nxf2 {[%clk 0:01:42.4]} 19. Rxf2 {[%clk 0:01:46.3]}
19... Bxf2+ {[%clk 0:01:39.8]} 20. Kh1 {[%clk 0:01:45.8]} 20... Rxf3 {[%clk
0:01:30.4]} 21. gxf3 {[%clk 0:01:43.9]} 21... Re1+ {[%clk 0:01:28.9]} 22. Kg2
{[%clk 0:01:42.1]} 22... Rg1+ {[%clk 0:01:27.5]} 0-1

[Event "*** Titled Tuesday Blitz"]
[Site "Chess.com"]
[Date "2020.05.19"]
[Round "6"]
[White "IljaJoke"]
[Black "SubrotaBiswas"]
[Result "1-0"]
[WhiteElo "2534"]
[BlackElo "2371"]
[TimeControl "180+1"]
[EndTime "13:06:14 PDT"]
[Termination "IljaJoke won by resignation"]

1. d4 {[%clk 0:03:00.9]} 1... Nf6 {[%clk 0:02:58.7]} 2. c4 {[%clk 0:03:00]} 2...
g6 {[%clk 0:02:58]} 3. Nc3 {[%clk 0:03:00]} 3... Bg7 {[%clk 0:02:57.7]} 4. e4
{[%clk 0:03:00.3]} 4... d6 {[%clk 0:02:58.4]} 5. Be2 {[%clk 0:03:00.5]} 5... O-O
{[%clk 0:02:59.3]} 6. Be3 {[%clk 0:03:00.9]} 6... e5 {[%clk 0:02:59.2]} 7. d5
{[%clk 0:03:00.8]} 7... a5 {[%clk 0:02:56]} 8. g4 {[%clk 0:02:59.6]} 8... Na6
{[%clk 0:02:55.2]} 9. h4 {[%clk 0:02:59.6]} 9... Nc5 {[%clk 0:02:54.2]} 10. f3
{[%clk 0:02:59.8]} 10... c6 {[%clk 0:02:48.2]} 11. h5 {[%clk 0:02:57.5]} 11...
cxd5 {[%clk 0:02:45.7]} 12. cxd5 {[%clk 0:02:58.4]} 12... a4 {[%clk 0:02:45.2]}
13. Qd2 {[%clk 0:02:45.4]} 13... a3 {[%clk 0:02:25.5]} 14. b3 {[%clk 0:02:45.2]}
14... Qa5 {[%clk 0:02:24.4]} 15. Nh3 {[%clk 0:02:41.7]} 15... Bd7 {[%clk
0:02:21.7]} 16. Nf2 {[%clk 0:02:38.6]} 16... Rfc8 {[%clk 0:02:16.1]} 17. Ncd1
{[%clk 0:02:38.4]} 17... Qb6 {[%clk 0:02:00.5]} 18. Kf1 {[%clk 0:02:23]} 18...
Bb5 {[%clk 0:01:59.8]} 19. Bxb5 {[%clk 0:02:22.5]} 19... Qxb5+ {[%clk
0:01:59.8]} 20. Kg2 {[%clk 0:02:23.1]} 20... Na6 {[%clk 0:01:53.4]} 21. hxg6
{[%clk 0:02:22]} 21... fxg6 {[%clk 0:01:52.4]} 22. Bh6 {[%clk 0:02:18.2]} 22...
Bh8 {[%clk 0:01:50.8]} 23. Ne3 {[%clk 0:02:08.9]} 23... Nb4 {[%clk 0:01:49.6]}
24. Rhc1 {[%clk 0:01:52.8]} 24... Nd7 {[%clk 0:01:47.9]} 25. Nc4 {[%clk
0:01:50.1]} 25... Nxa2 {[%clk 0:01:29]} 26. Qxa2 {[%clk 0:01:35.4]} 26... Qa4
{[%clk 0:01:28.3]} 27. bxa4 {[%clk 0:01:34.8]} 1-0

[Event "*** Titled Tuesday Blitz"]
[Site "Chess.com"]
[Date "2020.05.19"]
[Round "6"]
[White "giantslayer83"]
[Black "lolo9292"]
[Result "0-1"]
[WhiteElo "2678"]
[BlackElo "2530"]
[TimeControl "180+1"]
[EndTime "13:06:22 PDT"]
[Termination "lolo9292 won by resignation"]

1. d4 {[%clk 0:03:00.9]} 1... Nf6 {[%clk 0:02:58.5]} 2. Bg5 {[%clk 0:03:00.1]}
2... g6 {[%clk 0:02:59.4]} 3. Bxf6 {[%clk 0:02:59.9]} 3... exf6 {[%clk
0:02:59.5]} 4. e3 {[%clk 0:02:59.8]} 4... d6 {[%clk 0:03:00]} 5. h4 {[%clk
0:03:00]} 5... h5 {[%clk 0:03:00.2]} 6. Nd2 {[%clk 0:02:59.2]} 6... Bh6 {[%clk
0:03:00.2]} 7. g3 {[%clk 0:02:55.3]} 7... c6 {[%clk 0:02:59.2]} 8. Bg2 {[%clk
0:02:55.3]} 8... d5 {[%clk 0:02:58.9]} 9. Ne2 {[%clk 0:02:53]} 9... Bg4 {[%clk
0:02:59.2]} 10. c4 {[%clk 0:02:51.8]} 10... O-O {[%clk 0:02:59.3]} 11. cxd5
{[%clk 0:02:47.6]} 11... cxd5 {[%clk 0:03:00.2]} 12. Qb3 {[%clk 0:02:47.9]}
12... Bxe2 {[%clk 0:02:58.4]} 13. Kxe2 {[%clk 0:02:47.7]} 13... Nc6 {[%clk
0:02:59.3]} 14. Qxd5 {[%clk 0:02:47.2]} 14... Qb6 {[%clk 0:02:59.5]} 15. Nc4
{[%clk 0:02:37.7]} 15... Qa6 {[%clk 0:02:58.9]} 16. Rhc1 {[%clk 0:02:25.7]}
16... Rfd8 {[%clk 0:02:58.1]} 17. Qc5 {[%clk 0:02:24.4]} 17... Bf8 {[%clk
0:02:56.6]} 18. Qd5 {[%clk 0:02:04.5]} 18... Rxd5 {[%clk 0:02:55.9]} 19. Bxd5
{[%clk 0:02:05.4]} 19... Nb4 {[%clk 0:02:55.6]} 20. Bf3 {[%clk 0:02:03.1]} 20...
Rc8 {[%clk 0:02:55.4]} 21. b3 {[%clk 0:02:02.2]} 21... b5 {[%clk 0:02:55.2]} 22.
Nd2 {[%clk 0:01:58.4]} 22... Rxc1 {[%clk 0:02:55.4]} 23. Rxc1 {[%clk 0:01:59.3]}
23... Qxa2 {[%clk 0:02:52.7]} 24. Rc7 {[%clk 0:01:59]} 24... a5 {[%clk
0:02:50.1]} 25. g4 {[%clk 0:01:48.3]} 25... a4 {[%clk 0:02:45.8]} 26. bxa4
{[%clk 0:01:46.9]} 26... bxa4 {[%clk 0:02:45]} 27. gxh5 {[%clk 0:01:46.7]} 27...
Nd5 {[%clk 0:02:41.4]} 28. Rd7 {[%clk 0:01:37.3]} 28... Nb6 {[%clk 0:02:40.3]}
29. Rb7 {[%clk 0:01:16]} 29... Nc4 {[%clk 0:02:29.8]} 30. hxg6 {[%clk
0:01:14.4]} 30... Qxd2+ {[%clk 0:02:28.7]} 31. Kf1 {[%clk 0:01:14.8]} 31... Qd3+
{[%clk 0:02:28.4]} 32. Be2 {[%clk 0:01:13.8]} 32... Qe4 {[%clk 0:02:14.9]} 33.
gxf7+ {[%clk 0:00:54]} 33... Kg7 {[%clk 0:02:14.3]} 34. Bxc4 {[%clk 0:00:50.3]}
34... Qh1+ {[%clk 0:02:12.5]} 35. Ke2 {[%clk 0:00:49.9]} 35... Qxb7 {[%clk
0:02:13.4]} 0-1

[Event "*** Titled Tuesday Blitz"]
[Site "Chess.com"]
[Date "2020.05.19"]
[Round "6"]
[White "olksuna"]
[Black "Maksimus1998"]
[Result "1-0"]
[WhiteElo "2581"]
[BlackElo "2440"]
[TimeControl "180+1"]
[EndTime "13:06:32 PDT"]
[Termination "olksuna won by resignation"]

1. c4 {[%clk 0:03:00.9]} 1... c5 {[%clk 0:02:58.9]} 2. Nc3 {[%clk 0:02:59.8]}
2... Nc6 {[%clk 0:02:58.5]} 3. Nf3 {[%clk 0:02:59.8]} 3... g6 {[%clk 0:02:58.6]}
4. e3 {[%clk 0:02:59.6]} 4... Nf6 {[%clk 0:02:58.2]} 5. d4 {[%clk 0:03:00]} 5...
cxd4 {[%clk 0:02:59.1]} 6. exd4 {[%clk 0:03:00.9]} 6... d5 {[%clk 0:02:59.4]} 7.
cxd5 {[%clk 0:03:01.8]} 7... Nxd5 {[%clk 0:02:59.8]} 8. Qb3 {[%clk 0:03:02.5]}
8... Nxc3 {[%clk 0:02:59.6]} 9. Bc4 {[%clk 0:03:03.1]} 9... e6 {[%clk
0:02:59.9]} 10. bxc3 {[%clk 0:02:59.5]} 10... Bd7 {[%clk 0:03:00.1]} 11. Be2
{[%clk 0:02:57.6]} 11... Na5 {[%clk 0:02:59.3]} 12. Qb1 {[%clk 0:02:54.5]} 12...
f6 {[%clk 0:02:57.8]} 13. O-O {[%clk 0:02:52.8]} 13... Kf7 {[%clk 0:02:55.5]}
14. Bf4 {[%clk 0:02:34.3]} 14... Rc8 {[%clk 0:02:53.8]} 15. Qd3 {[%clk
0:02:29.1]} 15... Bc6 {[%clk 0:02:48.6]} 16. Qe3 {[%clk 0:02:16.9]} 16... Bd6
{[%clk 0:02:41.3]} 17. Rab1 {[%clk 0:02:12.5]} 17... b6 {[%clk 0:02:37]} 18.
Rfe1 {[%clk 0:02:12.4]} 18... Bxf3 {[%clk 0:02:18.3]} 19. Bxf3 {[%clk
0:02:01.1]} 19... Bxf4 {[%clk 0:02:18.1]} 20. Qxf4 {[%clk 0:01:55.2]} 20... Rxc3
{[%clk 0:02:13.4]} 21. d5 {[%clk 0:01:48.9]} 21... exd5 {[%clk 0:01:48.6]} 22.
Rbd1 {[%clk 0:01:47.7]} 22... Rc5 {[%clk 0:01:46.5]} 23. h4 {[%clk 0:01:40.5]}
23... Qd7 {[%clk 0:01:15.3]} 24. Bxd5+ {[%clk 0:01:35.7]} 24... Kg7 {[%clk
0:01:06.5]} 25. Be6 {[%clk 0:01:34.6]} 1-0

[Event "*** Titled Tuesday Blitz"]
[Site "Chess.com"]
[Date "2020.05.19"]
[Round "6"]
[White "HanSchut"]
[Black "parmupill123"]
[Result "0-1"]
[WhiteElo "2233"]
[BlackElo "2411"]
[TimeControl "180+1"]
[EndTime "13:06:38 PDT"]
[Termination "parmupill123 won by resignation"]

1. e4 {[%clk 0:03:00.9]} 1... e6 {[%clk 0:03:00.9]} 2. d4 {[%clk 0:03:00.5]}
2... d5 {[%clk 0:02:58.2]} 3. Nd2 {[%clk 0:03:01]} 3... c5 {[%clk 0:02:57.7]} 4.
Ngf3 {[%clk 0:03:00.2]} 4... Nf6 {[%clk 0:02:55.3]} 5. exd5 {[%clk 0:02:58.4]}
5... Nxd5 {[%clk 0:02:54.6]} 6. Ne4 {[%clk 0:02:43.8]} 6... cxd4 {[%clk
0:02:52]} 7. Qxd4 {[%clk 0:02:40.2]} 7... Nc6 {[%clk 0:02:34.9]} 8. Bb5 {[%clk
0:02:27.7]} 8... Bd7 {[%clk 0:02:33.9]} 9. Bxc6 {[%clk 0:02:27.5]} 9... Bxc6
{[%clk 0:02:34.8]} 10. O-O {[%clk 0:02:21.1]} 10... Nf6 {[%clk 0:02:30.8]} 11.
Nxf6+ {[%clk 0:02:10.1]} 11... Qxf6 {[%clk 0:02:31.7]} 12. Qxf6 {[%clk
0:02:06.7]} 12... gxf6 {[%clk 0:02:32.6]} 13. Nd4 {[%clk 0:02:06.5]} 13... Bd7
{[%clk 0:02:26.1]} 14. Re1 {[%clk 0:02:02.4]} 14... O-O-O {[%clk 0:02:23.7]} 15.
c3 {[%clk 0:02:00.6]} 15... Bd6 {[%clk 0:02:14.3]} 16. Be3 {[%clk 0:01:54]}
16... a6 {[%clk 0:02:12.7]} 17. Rad1 {[%clk 0:01:52.6]} 17... Bc7 {[%clk
0:02:02.3]} 18. Nb3 {[%clk 0:01:50.9]} 18... Bc6 {[%clk 0:01:59.9]} 19. Nd4
{[%clk 0:01:31.2]} 19... Bd5 {[%clk 0:01:58.5]} 20. b3 {[%clk 0:01:28]} 20...
Ba5 {[%clk 0:01:56.9]} 21. Bd2 {[%clk 0:01:22]} 21... Rhg8 {[%clk 0:01:51.2]}
22. g3 {[%clk 0:01:17.1]} 22... Bb6 {[%clk 0:01:41.3]} 23. Nc2 {[%clk
0:01:12.3]} 23... Bf3 {[%clk 0:01:39]} 24. Be3 {[%clk 0:00:38.9]} 0-1

[Event "*** Titled Tuesday Blitz"]
[Site "Chess.com"]
[Date "2020.05.19"]
[Round "6"]
[White "jtayar88"]
[Black "Susal_De_Silva"]
[Result "1-0"]
[WhiteElo "2553"]
[BlackElo "2379"]
[TimeControl "180+1"]
[EndTime "13:06:40 PDT"]
[Termination "jtayar88 won by checkmate"]

1. e4 {[%clk 0:03:00.9]} 1... e5 {[%clk 0:03:00]} 2. Nf3 {[%clk 0:02:58.8]} 2...
Nc6 {[%clk 0:03:00.1]} 3. Nc3 {[%clk 0:02:57.8]} 3... Nf6 {[%clk 0:02:59.2]} 4.
d4 {[%clk 0:02:57.5]} 4... Bb4 {[%clk 0:02:57.5]} 5. Nxe5 {[%clk 0:02:55.9]}
5... Nxe5 {[%clk 0:02:56.3]} 6. dxe5 {[%clk 0:02:54.4]} 6... Nxe4 {[%clk
0:02:52.3]} 7. Qg4 {[%clk 0:02:52.8]} 7... Nxc3 {[%clk 0:02:49.1]} 8. Qxb4
{[%clk 0:02:37.5]} 8... Nd5 {[%clk 0:02:44.4]} 9. Qg4 {[%clk 0:02:24.1]} 9... g6
{[%clk 0:02:36]} 10. Bc4 {[%clk 0:02:16.3]} 10... Ne7 {[%clk 0:02:16.2]} 11. Qf3
{[%clk 0:02:06.4]} 11... d5 {[%clk 0:01:31.6]} 12. exd6 {[%clk 0:02:01.8]} 12...
Nf5 {[%clk 0:01:31.8]} 13. Qe4+ {[%clk 0:01:31.2]} 13... Kf8 {[%clk 0:01:23]}
14. Qe5 {[%clk 0:01:27.8]} 14... Qh4 {[%clk 0:00:30.4]} 15. Qxh8# {[%clk
0:01:25.6]} 1-0

[Event "*** Titled Tuesday Blitz"]
[Site "Chess.com"]
[Date "2020.05.19"]
[Round "6"]
[White "Harsha_Bharathakoti"]
[Black "vpantev"]
[Result "1-0"]
[WhiteElo "2758"]
[BlackElo "2564"]
[TimeControl "180+1"]
[EndTime "13:06:56 PDT"]
[Termination "Harsha_Bharathakoti won by resignation"]

1. e4 {[%clk 0:02:55.4]} 1... c6 {[%clk 0:02:59.6]} 2. Nc3 {[%clk 0:02:51.6]}
2... d5 {[%clk 0:03:00.5]} 3. Nf3 {[%clk 0:02:52]} 3... dxe4 {[%clk 0:03:00.6]}
4. Nxe4 {[%clk 0:02:52.9]} 4... Nf6 {[%clk 0:03:01.1]} 5. Qe2 {[%clk 0:02:52.9]}
5... Nxe4 {[%clk 0:03:00.9]} 6. Qxe4 {[%clk 0:02:53.8]} 6... Qd5 {[%clk
0:03:01]} 7. Qh4 {[%clk 0:02:54.1]} 7... Qe6+ {[%clk 0:03:00]} 8. Be2 {[%clk
0:02:54.3]} 8... Nd7 {[%clk 0:02:59.2]} 9. b3 {[%clk 0:02:48.4]} 9... Nf6 {[%clk
0:02:55.4]} 10. Bb2 {[%clk 0:02:46.7]} 10... Qg4 {[%clk 0:02:55.2]} 11. Qg3
{[%clk 0:02:44.1]} 11... Qxg3 {[%clk 0:02:54.9]} 12. hxg3 {[%clk 0:02:45]} 12...
Bf5 {[%clk 0:02:54.3]} 13. O-O-O {[%clk 0:02:37.2]} 13... e6 {[%clk 0:02:31.6]}
14. Nh4 {[%clk 0:02:27.1]} 14... Be7 {[%clk 0:02:14.6]} 15. Nxf5 {[%clk
0:02:23.9]} 15... exf5 {[%clk 0:02:14.5]} 16. Bd3 {[%clk 0:02:12.2]} 16... Ne4
{[%clk 0:02:01.7]} 17. Bxe4 {[%clk 0:02:08.3]} 17... fxe4 {[%clk 0:02:01.6]} 18.
Bxg7 {[%clk 0:02:09]} 18... Rg8 {[%clk 0:02:01.6]} 19. Rxh7 {[%clk 0:02:09.7]}
19... Kd7 {[%clk 0:02:01.2]} 20. Re1 {[%clk 0:02:01.1]} 20... Rae8 {[%clk
0:02:01.2]} 21. Bc3 {[%clk 0:01:57.5]} 21... f5 {[%clk 0:01:58.7]} 22. Reh1
{[%clk 0:01:43.3]} 22... b6 {[%clk 0:01:57.7]} 23. R1h5 {[%clk 0:01:38]} 23...
Ref8 {[%clk 0:01:56.9]} 24. Kd1 {[%clk 0:01:32]} 24... Kd8 {[%clk 0:01:52.1]}
25. a4 {[%clk 0:01:28.3]} 25... a6 {[%clk 0:01:43.1]} 26. R5h6 {[%clk
0:01:23.2]} 26... f4 {[%clk 0:01:33.4]} 27. Rxc6 {[%clk 0:01:01.7]} 27... fxg3
{[%clk 0:01:30.3]} 28. fxg3 {[%clk 0:01:02.6]} 28... Bc5 {[%clk 0:01:27.2]} 29.
Bf6+ {[%clk 0:00:56.8]} 29... Ke8 {[%clk 0:01:23.8]} 30. Re6+ {[%clk 0:00:56.5]}
1-0

[Event "*** Titled Tuesday Blitz"]
[Site "Chess.com"]
[Date "2020.05.19"]
[Round "6"]
[White "Siemba"]
[Black "LADIESGET2KNOWME"]
[Result "0-1"]
[WhiteElo "2272"]
[BlackElo "2549"]
[TimeControl "180+1"]
[EndTime "13:06:56 PDT"]
[Termination "LADIESGET2KNOWME won by resignation"]

1. e4 {[%clk 0:03:00.9]} 1... e5 {[%clk 0:02:12.7]} 2. Nf3 {[%clk 0:03:00.5]}
2... Nc6 {[%clk 0:02:13.3]} 3. Nc3 {[%clk 0:03:00.5]} 3... Nf6 {[%clk
0:02:12.8]} 4. d4 {[%clk 0:03:00.9]} 4... exd4 {[%clk 0:02:13.7]} 5. Nxd4 {[%clk
0:03:01.8]} 5... Bc5 {[%clk 0:02:14.3]} 6. Be3 {[%clk 0:03:02.1]} 6... Bb6
{[%clk 0:02:14.1]} 7. Qd2 {[%clk 0:03:03]} 7... O-O {[%clk 0:02:14.6]} 8. O-O-O
{[%clk 0:03:03.6]} 8... Re8 {[%clk 0:02:15.2]} 9. f3 {[%clk 0:03:04.4]} 9... d5
{[%clk 0:02:15.6]} 10. exd5 {[%clk 0:03:01.5]} 10... Nxd5 {[%clk 0:02:16.5]} 11.
Bg5 {[%clk 0:03:02.2]} 11... Nde7 {[%clk 0:02:15.8]} 12. Nxc6 {[%clk 0:02:57.9]}
12... Qxd2+ {[%clk 0:02:16.7]} 13. Bxd2 {[%clk 0:02:55.1]} 13... Nxc6 {[%clk
0:02:17.6]} 14. Nd5 {[%clk 0:02:55.7]} 14... Be6 {[%clk 0:02:15.3]} 15. Nxb6
{[%clk 0:02:55.7]} 15... axb6 {[%clk 0:02:15.4]} 16. a3 {[%clk 0:02:40.2]} 16...
Ne7 {[%clk 0:02:00.4]} 17. Bb5 {[%clk 0:02:36.5]} 17... c6 {[%clk 0:02:00.3]}
18. Bd3 {[%clk 0:02:36.6]} 18... b5 {[%clk 0:02:00.3]} 19. Rhe1 {[%clk
0:02:34.6]} 19... Bc4 {[%clk 0:02:00.7]} 20. Bxc4 {[%clk 0:02:31.6]} 20... bxc4
{[%clk 0:02:01.6]} 21. Re4 {[%clk 0:02:32.2]} 21... Nd5 {[%clk 0:01:48.5]} 22.
Rxc4 {[%clk 0:02:24.8]} 22... Re2 {[%clk 0:01:49.4]} 23. Rg4 {[%clk 0:02:22]}
23... f5 {[%clk 0:01:40]} 24. Rg5 {[%clk 0:02:20.5]} 24... h6 {[%clk 0:01:39.7]}
25. Rxf5 {[%clk 0:02:01.6]} 25... Rxg2 {[%clk 0:01:39.2]} 26. c4 {[%clk
0:01:48.9]} 26... Nb6 {[%clk 0:01:38.8]} 27. Bc3 {[%clk 0:01:41.9]} 27... Nxc4
{[%clk 0:01:39]} 28. Rd7 {[%clk 0:01:41.7]} 28... Rg1+ {[%clk 0:01:36.7]} 29.
Rd1 {[%clk 0:00:51.5]} 29... Rxd1+ {[%clk 0:01:35.9]} 30. Kxd1 {[%clk
0:00:51.8]} 30... Ne3+ {[%clk 0:01:36.7]} 31. Ke2 {[%clk 0:00:45.3]} 31... Nxf5
{[%clk 0:01:37.6]} 0-1